[Event "Early-Titled-Tuesday-Blitz-December-26-2023"]
[Site "Chess.com"]
[Date "2023.12.26"]
[Round "2"]
[White "FunnyDuck66"]
[Black "MikeSailer"]
[Result "1/2-1/2"]
[WhiteElo "2480"]
[BlackElo "2176"]
[TimeControl "180+1"]
[EndTime "8:17:50 PST"]
[Termination "Game drawn by repetition"]

1. d4 {[%clk 0:03:00.9]} 1... d5 {[%clk 0:02:58.1]} 2. c4 {[%clk 0:03:00.7]}
2... Bf5 {[%clk 0:02:58.1]} 3. Nc3 {[%clk 0:02:58.5]} 3... e6 {[%clk 0:02:58.6]}
4. cxd5 {[%clk 0:02:55]} 4... exd5 {[%clk 0:02:58.8]} 5. Qb3 {[%clk 0:02:55.4]}
5... Nc6 {[%clk 0:02:58.4]} 6. Qa4 {[%clk 0:02:27.5]} 6... Bb4 {[%clk
0:02:50.3]} 7. Nf3 {[%clk 0:02:22.3]} 7... Nf6 {[%clk 0:02:49.6]} 8. Bg5 {[%clk
0:02:21.5]} 8... Qd7 {[%clk 0:02:31.7]} 9. Bxf6 {[%clk 0:02:13.2]} 9... gxf6
{[%clk 0:02:31.9]} 10. e3 {[%clk 0:02:13.1]} 10... Rg8 {[%clk 0:02:25.8]} 11. g3
{[%clk 0:02:00.8]} 11... Be4 {[%clk 0:01:53.7]} 12. Be2 {[%clk 0:01:39.9]} 12...
Qh3 {[%clk 0:01:52.8]} 13. O-O-O {[%clk 0:01:25.1]} 13... Bxc3 {[%clk
0:01:46.1]} 14. bxc3 {[%clk 0:01:26]} 14... a6 {[%clk 0:01:30.4]} 15. Rhf1
{[%clk 0:01:00.8]} 15... Qd7 {[%clk 0:01:19.7]} 16. Nd2 {[%clk 0:00:55.1]} 16...
Bf5 {[%clk 0:01:16.2]} 17. Qb3 {[%clk 0:00:48.1]} 17... O-O-O {[%clk 0:01:12.7]}
18. Qa3 {[%clk 0:00:23.4]} 18... Bg6 {[%clk 0:00:40.8]} 19. Nb3 {[%clk
0:00:21.9]} 19... Na7 {[%clk 0:00:33.7]} 20. Nc5 {[%clk 0:00:20.5]} 20... Qc6
{[%clk 0:00:33.7]} 21. Kd2 {[%clk 0:00:18.2]} 21... Nb5 {[%clk 0:00:30.1]} 22.
Qb4 {[%clk 0:00:18.5]} 22... Nd6 {[%clk 0:00:28.5]} 23. Rb1 {[%clk 0:00:17.6]}
23... Ne4+ {[%clk 0:00:23.8]} 24. Nxe4 {[%clk 0:00:17]} 24... Bxe4 {[%clk
0:00:20.9]} 25. Bd3 {[%clk 0:00:17.3]} 25... Bxd3 {[%clk 0:00:21.1]} 26. Kxd3
{[%clk 0:00:18.2]} 26... b5 {[%clk 0:00:17.7]} 27. Ra1 {[%clk 0:00:09.5]} 27...
Qc4+ {[%clk 0:00:17.8]} 28. Qxc4 {[%clk 0:00:09.5]} 28... bxc4+ {[%clk
0:00:16.8]} 29. Kd2 {[%clk 0:00:09.6]} 29... Kd7 {[%clk 0:00:16.7]} 30. Rab1
{[%clk 0:00:09.7]} 30... Rb8 {[%clk 0:00:17.1]} 31. a4 {[%clk 0:00:10.3]} 31...
a5 {[%clk 0:00:15.1]} 32. Kc2 {[%clk 0:00:09.1]} 32... Rb6 {[%clk 0:00:14.6]}
33. Rxb6 {[%clk 0:00:09]} 33... cxb6 {[%clk 0:00:15.1]} 34. Rb1 {[%clk
0:00:08.2]} 34... Kc6 {[%clk 0:00:15.7]} 35. Rb5 {[%clk 0:00:08.9]} 35... Rg5
{[%clk 0:00:11.3]} 36. h4 {[%clk 0:00:08.4]} 36... Rf5 {[%clk 0:00:09.8]} 37. f4
{[%clk 0:00:07.7]} 37... Rh5 {[%clk 0:00:10.4]} 38. Kd2 {[%clk 0:00:07.8]} 38...
Rh6 {[%clk 0:00:11]} 39. Ke2 {[%clk 0:00:07.8]} 39... Rg6 {[%clk 0:00:11.5]} 40.
Kf3 {[%clk 0:00:08.3]} 40... f5 {[%clk 0:00:11.3]} 41. Rb1 {[%clk 0:00:06.8]}
41... h5 {[%clk 0:00:11.6]} 42. Rb5 {[%clk 0:00:06.4]} 42... Rg8 {[%clk
0:00:11.7]} 43. Rb1 {[%clk 0:00:06.2]} 43... Rb8 {[%clk 0:00:11.5]} 44. Rb5
{[%clk 0:00:06.8]} 44... Rb7 {[%clk 0:00:12.2]} 45. g4 {[%clk 0:00:06.6]} 45...
fxg4+ {[%clk 0:00:11.7]} 46. Kg3 {[%clk 0:00:07.2]} 46... f5 {[%clk 0:00:12.3]}
47. Rb1 {[%clk 0:00:05]} 47... Re7 {[%clk 0:00:12.6]} 48. Kf2 {[%clk 0:00:05.5]}
48... Rb7 {[%clk 0:00:12.7]} 49. Rb5 {[%clk 0:00:05]} 49... Rb8 {[%clk 0:00:13]}
50. Kg3 {[%clk 0:00:05.2]} 50... Rb7 {[%clk 0:00:13]} 51. Kf2 {[%clk 0:00:05.5]}
51... Re7 {[%clk 0:00:13]} 52. Rb1 {[%clk 0:00:04.3]} 52... Rg7 {[%clk
0:00:11.4]} 53. Kg3 {[%clk 0:00:04.3]} 53... Re7 {[%clk 0:00:11.7]} 54. Kf2
{[%clk 0:00:04.6]} 1/2-1/2

[Event "Early-Titled-Tuesday-Blitz-December-26-2023"]
[Site "Chess.com"]
[Date "2023.12.26"]
[Round "2"]
[White "Alexander_Donchenko"]
[Black "Ramosha"]
[Result "1-0"]
[WhiteElo "2910"]
[BlackElo "2610"]
[TimeControl "180+1"]
[EndTime "8:17:51 PST"]
[Termination "Alexander_Donchenko won by checkmate"]

1. Nf3 {[%clk 0:03:00.9]} 1... Nf6 {[%clk 0:02:59.6]} 2. g3 {[%clk 0:03:01.5]}
2... e6 {[%clk 0:02:59.9]} 3. Bg2 {[%clk 0:03:02.2]} 3... Be7 {[%clk 0:03:00.8]}
4. O-O {[%clk 0:03:02.8]} 4... O-O {[%clk 0:03:01.7]} 5. d4 {[%clk 0:03:03.4]}
5... d5 {[%clk 0:03:02.4]} 6. c4 {[%clk 0:03:04.1]} 6... b6 {[%clk 0:03:01.5]}
7. cxd5 {[%clk 0:03:03.7]} 7... exd5 {[%clk 0:03:01.8]} 8. Nc3 {[%clk
0:03:04.3]} 8... c6 {[%clk 0:03:02.3]} 9. Bf4 {[%clk 0:03:03.1]} 9... Na6 {[%clk
0:03:02]} 10. Ne5 {[%clk 0:03:02.2]} 10... Bb7 {[%clk 0:03:01.5]} 11. e4 {[%clk
0:03:02.8]} 11... Nc7 {[%clk 0:03:00.2]} 12. Re1 {[%clk 0:02:59.4]} 12... dxe4
{[%clk 0:03:00]} 13. Nxe4 {[%clk 0:02:59.6]} 13... Ncd5 {[%clk 0:02:58]} 14. Bg5
{[%clk 0:02:58.3]} 14... Nxe4 {[%clk 0:02:56.1]} 15. Bxe7 {[%clk 0:02:58.5]}
15... Qxe7 {[%clk 0:02:57]} 16. Bxe4 {[%clk 0:02:58.6]} 16... Qd6 {[%clk
0:02:55]} 17. Rc1 {[%clk 0:02:58.2]} 17... f6 {[%clk 0:02:52.3]} 18. Qh5 {[%clk
0:02:37.5]} 18... f5 {[%clk 0:02:32.5]} 19. Bg2 {[%clk 0:02:10.3]} 19... g6
{[%clk 0:02:29.9]} 20. Qf3 {[%clk 0:02:07.9]} 20... Rad8 {[%clk 0:02:22.4]} 21.
h4 {[%clk 0:01:53.4]} 21... Rfe8 {[%clk 0:02:22.1]} 22. h5 {[%clk 0:01:50.4]}
22... Kg7 {[%clk 0:02:21.3]} 23. h6+ {[%clk 0:01:49]} 23... Kg8 {[%clk
0:02:20.9]} 24. Qb3 {[%clk 0:01:48.4]} 24... g5 {[%clk 0:02:16.3]} 25. Qf3
{[%clk 0:01:35.9]} 25... Rf8 {[%clk 0:02:11]} 26. Qh5 {[%clk 0:01:32.1]} 26...
Qf6 {[%clk 0:02:09.4]} 27. Re2 {[%clk 0:01:14.1]} 27... Rd6 {[%clk 0:01:32.6]}
28. Nxc6 {[%clk 0:01:05.8]} 28... Kh8 {[%clk 0:00:50.4]} 29. Ne5 {[%clk
0:01:05.7]} 29... Kg8 {[%clk 0:00:50.8]} 30. Nc4 {[%clk 0:00:53.7]} 30... Qxh6
{[%clk 0:00:47.2]} 31. Qxh6 {[%clk 0:00:42]} 31... Rxh6 {[%clk 0:00:48.1]} 32.
Re5 {[%clk 0:00:40.6]} 32... Rd8 {[%clk 0:00:44]} 33. Rxf5 {[%clk 0:00:40.2]}
33... Rg6 {[%clk 0:00:39.4]} 34. Ne5 {[%clk 0:00:38.5]} 34... Ne7 {[%clk
0:00:37.9]} 35. Rf7 {[%clk 0:00:31.2]} 35... Bxg2 {[%clk 0:00:37.2]} 36. Rxe7
{[%clk 0:00:30.6]} 36... Bd5 {[%clk 0:00:33.2]} 37. Nxg6 {[%clk 0:00:30.7]}
37... hxg6 {[%clk 0:00:31.5]} 38. Rcc7 {[%clk 0:00:27.9]} 38... Bxa2 {[%clk
0:00:31.6]} 39. Rxa7 {[%clk 0:00:25.7]} 39... Kf8 {[%clk 0:00:24.2]} 40. Rh7
{[%clk 0:00:23.9]} 40... Bg8 {[%clk 0:00:24.3]} 41. Rhd7 {[%clk 0:00:21.9]}
41... Re8 {[%clk 0:00:21]} 42. d5 {[%clk 0:00:22.2]} 42... g4 {[%clk 0:00:19.9]}
43. Kf1 {[%clk 0:00:21.6]} 43... Rc8 {[%clk 0:00:19.7]} 44. d6 {[%clk
0:00:19.6]} 44... Bc4+ {[%clk 0:00:18.6]} 45. Ke1 {[%clk 0:00:19.7]} 45... Re8+
{[%clk 0:00:19.4]} 46. Re7 {[%clk 0:00:20.1]} 46... Rd8 {[%clk 0:00:19.6]} 47.
Rad7 {[%clk 0:00:19.7]} 47... Ra8 {[%clk 0:00:19.5]} 48. Kd2 {[%clk 0:00:18.4]}
48... b5 {[%clk 0:00:18.5]} 49. Rh7 {[%clk 0:00:18.2]} 49... Bg8 {[%clk
0:00:18.4]} 50. Rh8 {[%clk 0:00:17.1]} 50... Re8 {[%clk 0:00:18.7]} 51. Re7
{[%clk 0:00:16.8]} 51... Rd8 {[%clk 0:00:19.3]} 52. Ke3 {[%clk 0:00:14.3]} 52...
Rxd6 {[%clk 0:00:19.8]} 53. Ra7 {[%clk 0:00:14.4]} 53... Rd8 {[%clk 0:00:20.3]}
54. Kf4 {[%clk 0:00:14.2]} 54... Rc8 {[%clk 0:00:20.7]} 55. Kxg4 {[%clk
0:00:14]} 55... b4 {[%clk 0:00:21.5]} 56. Kg5 {[%clk 0:00:14.2]} 56... Rc5+
{[%clk 0:00:20.8]} 57. Kxg6 {[%clk 0:00:13.6]} 57... Rc6+ {[%clk 0:00:21.6]} 58.
Kg5 {[%clk 0:00:13.7]} 58... Rc5+ {[%clk 0:00:22.4]} 59. Kh4 {[%clk 0:00:14]}
59... Rc8 {[%clk 0:00:22.1]} 60. f4 {[%clk 0:00:14.2]} 60... b3 {[%clk
0:00:22.3]} 61. g4 {[%clk 0:00:14]} 61... Rb8 {[%clk 0:00:22.4]} 62. f5 {[%clk
0:00:14.3]} 62... Rc8 {[%clk 0:00:23]} 63. Kh5 {[%clk 0:00:13.3]} 63... Rb8
{[%clk 0:00:22.8]} 64. g5 {[%clk 0:00:13.7]} 64... Rc8 {[%clk 0:00:23.5]} 65. g6
{[%clk 0:00:13.4]} 65... Rc1 {[%clk 0:00:23.1]} 66. Rf7+ {[%clk 0:00:13.4]}
66... Ke8 {[%clk 0:00:23.2]} 67. Rxg8# {[%clk 0:00:14.3]} 1-0

[Event "Early-Titled-Tuesday-Blitz-December-26-2023"]
[Site "Chess.com"]
[Date "2023.12.26"]
[Round "2"]
[White "FelixBlohberger"]
[Black "anasta10"]
[Result "1-0"]
[WhiteElo "2779"]
[BlackElo "2549"]
[TimeControl "180+1"]
[EndTime "8:17:51 PST"]
[Termination "FelixBlohberger won by resignation"]

1. Nf3 {[%clk 0:03:00.9]} 1... Nf6 {[%clk 0:02:59.9]} 2. c4 {[%clk 0:02:59.7]}
2... g6 {[%clk 0:03:00.8]} 3. b3 {[%clk 0:02:59.7]} 3... Bg7 {[%clk 0:03:01.3]}
4. Bb2 {[%clk 0:03:00.5]} 4... O-O {[%clk 0:03:02]} 5. g3 {[%clk 0:03:01.1]}
5... c5 {[%clk 0:03:02.7]} 6. Bg2 {[%clk 0:03:01.4]} 6... d6 {[%clk 0:03:03.3]}
7. O-O {[%clk 0:03:00.4]} 7... Nc6 {[%clk 0:03:03.9]} 8. Nc3 {[%clk 0:02:59.6]}
8... e5 {[%clk 0:03:03.3]} 9. d3 {[%clk 0:02:59.5]} 9... Be6 {[%clk 0:03:02.7]}
10. Nd2 {[%clk 0:02:57.2]} 10... Qd7 {[%clk 0:03:02.7]} 11. Nd5 {[%clk 0:02:54]}
11... Bh3 {[%clk 0:03:01.2]} 12. Ne4 {[%clk 0:02:44.5]} 12... Nxe4 {[%clk
0:02:34.6]} 13. dxe4 {[%clk 0:02:43]} 13... Bxg2 {[%clk 0:02:35.4]} 14. Kxg2
{[%clk 0:02:43.3]} 14... f5 {[%clk 0:02:33.7]} 15. Qd3 {[%clk 0:02:09.1]} 15...
Kh8 {[%clk 0:02:22.3]} 16. Rad1 {[%clk 0:02:06.6]} 16... Rad8 {[%clk 0:02:22.4]}
17. Rd2 {[%clk 0:02:01.5]} 17... Qf7 {[%clk 0:02:15.5]} 18. a3 {[%clk
0:01:54.6]} 18... Nd4 {[%clk 0:02:04.1]} 19. Bxd4 {[%clk 0:01:44.4]} 19... exd4
{[%clk 0:02:02.2]} 20. exf5 {[%clk 0:01:43.9]} 20... gxf5 {[%clk 0:02:01.2]} 21.
e3 {[%clk 0:01:34]} 21... Rde8 {[%clk 0:01:52.9]} 22. Re2 {[%clk 0:01:30.5]}
22... b6 {[%clk 0:01:41.7]} 23. Rfe1 {[%clk 0:01:27.5]} 23... dxe3 {[%clk
0:01:19.1]} 24. Rxe3 {[%clk 0:01:26.9]} 24... Rxe3 {[%clk 0:01:19.7]} 25. Rxe3
{[%clk 0:01:27.3]} 25... Be5 {[%clk 0:00:57.1]} 26. f4 {[%clk 0:01:25.2]} 26...
Bd4 {[%clk 0:00:46.3]} 27. Re7 {[%clk 0:01:24.4]} 27... Qh5 {[%clk 0:00:39.7]}
28. Qf3 {[%clk 0:01:16]} 28... Qxf3+ {[%clk 0:00:25]} 29. Kxf3 {[%clk
0:01:16.9]} 29... a6 {[%clk 0:00:24.3]} 30. Rb7 {[%clk 0:00:58.9]} 30... b5
{[%clk 0:00:23.6]} 31. cxb5 {[%clk 0:00:56.8]} 31... axb5 {[%clk 0:00:24.5]} 32.
Rxb5 {[%clk 0:00:56.8]} 32... Re8 {[%clk 0:00:25.2]} 33. a4 {[%clk 0:00:47.7]}
33... Re1 {[%clk 0:00:24.2]} 34. a5 {[%clk 0:00:44.1]} 34... Ra1 {[%clk
0:00:23.9]} 35. Ne7 {[%clk 0:00:21.4]} 35... Bc3 {[%clk 0:00:18.5]} 36. Nxf5
{[%clk 0:00:20.3]} 36... Kg8 {[%clk 0:00:18.3]} 37. Nxd6 {[%clk 0:00:18.7]}
37... Bb4 {[%clk 0:00:18.8]} 38. Ne4 {[%clk 0:00:14.8]} 38... Bxa5 {[%clk
0:00:14.7]} 39. Nxc5 {[%clk 0:00:14.1]} 39... Be1 {[%clk 0:00:14.4]} 40. Nd3
{[%clk 0:00:13.3]} 40... Bc3 {[%clk 0:00:14.1]} 41. Rc5 {[%clk 0:00:12.6]} 41...
Bd4 {[%clk 0:00:14]} 42. Rc4 {[%clk 0:00:12.6]} 42... Bg1 {[%clk 0:00:13.7]} 43.
h3 {[%clk 0:00:07.6]} 43... Ra2 {[%clk 0:00:13.6]} 44. b4 {[%clk 0:00:06.4]}
44... Kf7 {[%clk 0:00:13.9]} 45. b5 {[%clk 0:00:06.2]} 45... Ke7 {[%clk
0:00:13.9]} 46. Rc7+ {[%clk 0:00:04.8]} 46... Kd6 {[%clk 0:00:14.2]} 47. Rxh7
{[%clk 0:00:05.1]} 47... Ra3 {[%clk 0:00:15.1]} 48. Ke4 {[%clk 0:00:04.7]} 48...
Ra4+ {[%clk 0:00:16]} 49. Kf5 {[%clk 0:00:04.2]} 49... Ra5 {[%clk 0:00:16.5]}
50. Ne5 {[%clk 0:00:04.3]} 50... Rxb5 {[%clk 0:00:15.8]} 51. Rd7+ {[%clk
0:00:04.2]} 51... Kc5 {[%clk 0:00:16.2]} 52. Rd3 {[%clk 0:00:04.4]} 52... Bh2
{[%clk 0:00:15.9]} 53. h4 {[%clk 0:00:04.6]} 53... Rb8 {[%clk 0:00:15.6]} 54. h5
{[%clk 0:00:04.9]} 54... Rf8+ {[%clk 0:00:14.7]} 55. Ke4 {[%clk 0:00:05.4]}
55... Rg8 {[%clk 0:00:13.5]} 56. g4 {[%clk 0:00:05.2]} 56... Rf8 {[%clk
0:00:11.7]} 57. Nd7+ {[%clk 0:00:05.5]} 1-0

[Event "Early-Titled-Tuesday-Blitz-December-26-2023"]
[Site "Chess.com"]
[Date "2023.12.26"]
[Round "2"]
[White "nindjaxx8"]
[Black "Kirill_Klukin"]
[Result "0-1"]
[WhiteElo "2588"]
[BlackElo "2835"]
[TimeControl "180+1"]
[EndTime "8:17:56 PST"]
[Termination "Kirill_Klukin won by resignation"]

1. d4 {[%clk 0:03:00.3]} 1... Nf6 {[%clk 0:02:55.7]} 2. c4 {[%clk 0:03:00.5]}
2... Nc6 {[%clk 0:02:56]} 3. Nc3 {[%clk 0:02:58.5]} 3... e6 {[%clk 0:02:56]} 4.
Nf3 {[%clk 0:02:57.8]} 4... Bb4 {[%clk 0:02:55.8]} 5. Bg5 {[%clk 0:02:53.5]}
5... h6 {[%clk 0:02:55.6]} 6. Bh4 {[%clk 0:02:52.1]} 6... g5 {[%clk 0:02:51.9]}
7. Bg3 {[%clk 0:02:50.1]} 7... Ne4 {[%clk 0:02:52.5]} 8. Rc1 {[%clk 0:02:47.4]}
8... f5 {[%clk 0:02:50.8]} 9. Be5 {[%clk 0:02:37.4]} 9... Nxe5 {[%clk
0:02:46.2]} 10. Nxe5 {[%clk 0:02:38.3]} 10... O-O {[%clk 0:02:28.1]} 11. e3
{[%clk 0:02:35.2]} 11... d6 {[%clk 0:02:25]} 12. Nd3 {[%clk 0:02:34.4]} 12...
Bxc3+ {[%clk 0:02:24.3]} 13. bxc3 {[%clk 0:02:33.7]} 13... b6 {[%clk 0:02:12.5]}
14. Be2 {[%clk 0:02:33.4]} 14... Bb7 {[%clk 0:02:11.7]} 15. O-O {[%clk
0:02:33.3]} 15... Qe7 {[%clk 0:02:06.5]} 16. f3 {[%clk 0:02:32.7]} 16... Nf6
{[%clk 0:02:06.2]} 17. Nf2 {[%clk 0:02:31.9]} 17... e5 {[%clk 0:02:04.5]} 18.
Qc2 {[%clk 0:02:22]} 18... e4 {[%clk 0:01:51.5]} 19. fxe4 {[%clk 0:02:21.9]}
19... Nxe4 {[%clk 0:01:49.4]} 20. Nxe4 {[%clk 0:02:21.9]} 20... Bxe4 {[%clk
0:01:48.3]} 21. Bd3 {[%clk 0:02:21.9]} 21... Rae8 {[%clk 0:01:48.4]} 22. Rce1
{[%clk 0:02:20]} 22... Kg7 {[%clk 0:01:46]} 23. Rf2 {[%clk 0:02:05.9]} 23...
Bxd3 {[%clk 0:01:34.3]} 24. Qxd3 {[%clk 0:02:05.5]} 24... Qe4 {[%clk 0:01:35.1]}
25. Qxe4 {[%clk 0:01:45.6]} 25... Rxe4 {[%clk 0:01:35]} 26. Rf3 {[%clk
0:01:33.9]} 26... Kg6 {[%clk 0:01:26.8]} 27. h3 {[%clk 0:01:30.3]} 27... h5
{[%clk 0:01:20.5]} 28. Kf2 {[%clk 0:01:18.7]} 28... Rfe8 {[%clk 0:01:15.9]} 29.
g3 {[%clk 0:01:05.4]} 29... h4 {[%clk 0:00:56.9]} 30. gxh4 {[%clk 0:01:02]}
30... Rxh4 {[%clk 0:00:54.8]} 31. Rg1 {[%clk 0:00:57.9]} 31... Reh8 {[%clk
0:00:41.7]} 32. Rfg3 {[%clk 0:00:53.7]} 32... R8h5 {[%clk 0:00:41.6]} 33. Kg2
{[%clk 0:00:53]} 33... Re4 {[%clk 0:00:34.5]} 34. Kf2 {[%clk 0:00:52]} 34... f4
{[%clk 0:00:28]} 35. exf4 {[%clk 0:00:48.8]} 35... Rxf4+ {[%clk 0:00:28.9]} 36.
Kg2 {[%clk 0:00:48.9]} 36... Kf5 {[%clk 0:00:28.4]} 37. Re1 {[%clk 0:00:39]}
37... Rh7 {[%clk 0:00:28.6]} 38. Re8 {[%clk 0:00:36.7]} 38... Rf7 {[%clk
0:00:27]} 39. a4 {[%clk 0:00:30.4]} 39... a5 {[%clk 0:00:27]} 40. Kg1 {[%clk
0:00:27.4]} 40... c5 {[%clk 0:00:21.8]} 41. dxc5 {[%clk 0:00:13.8]} 41... dxc5
{[%clk 0:00:20.9]} 42. Rg8 {[%clk 0:00:14.3]} 42... Ke4 {[%clk 0:00:19.1]} 43.
R8xg5 {[%clk 0:00:13.9]} 43... Rf1+ {[%clk 0:00:17.5]} 44. Kh2 {[%clk
0:00:14.3]} 44... R1f2+ {[%clk 0:00:17.4]} 45. Rg2 {[%clk 0:00:14.7]} 45... Kd3
{[%clk 0:00:18]} 46. h4 {[%clk 0:00:12.9]} 46... Kxc3 {[%clk 0:00:17.8]} 47. h5
{[%clk 0:00:12.1]} 47... Rxg2+ {[%clk 0:00:18.2]} 48. Kxg2 {[%clk 0:00:08.6]}
48... Kxc4 {[%clk 0:00:18.8]} 49. Kg3 {[%clk 0:00:08]} 49... Kb4 {[%clk
0:00:18.6]} 50. Rg6 {[%clk 0:00:08.4]} 50... Kxa4 {[%clk 0:00:18.8]} 51. Rxb6
{[%clk 0:00:08.8]} 51... c4 {[%clk 0:00:19.5]} 52. Kg4 {[%clk 0:00:07.4]} 52...
Rc7 {[%clk 0:00:19.3]} 53. Rb1 {[%clk 0:00:05.8]} 53... c3 {[%clk 0:00:19.8]}
54. h6 {[%clk 0:00:06.2]} 54... c2 {[%clk 0:00:20.4]} 55. Rc1 {[%clk 0:00:06.4]}
55... Kb3 {[%clk 0:00:21.1]} 56. Kg5 {[%clk 0:00:04.8]} 56... Kb2 {[%clk
0:00:21.3]} 0-1

[Event "Early-Titled-Tuesday-Blitz-December-26-2023"]
[Site "Chess.com"]
[Date "2023.12.26"]
[Round "2"]
[White "Evgeny81"]
[Black "malakismayil"]
[Result "1-0"]
[WhiteElo "2763"]
[BlackElo "2548"]
[TimeControl "180+1"]
[EndTime "8:18:02 PST"]
[Termination "Evgeny81 won on time"]

1. d4 {[%clk 0:02:33.4]} 1... Nf6 {[%clk 0:02:58.5]} 2. c4 {[%clk 0:02:33.1]}
2... e6 {[%clk 0:02:58.6]} 3. Nf3 {[%clk 0:02:33.6]} 3... d5 {[%clk 0:02:59]} 4.
g3 {[%clk 0:02:34.2]} 4... Be7 {[%clk 0:02:56.7]} 5. Bg2 {[%clk 0:02:33.6]} 5...
O-O {[%clk 0:02:57.1]} 6. Qc2 {[%clk 0:02:34]} 6... dxc4 {[%clk 0:02:52.5]} 7.
Qxc4 {[%clk 0:02:33.1]} 7... Nc6 {[%clk 0:02:52.6]} 8. O-O {[%clk 0:02:30.5]}
8... Qd5 {[%clk 0:02:44.1]} 9. Qc2 {[%clk 0:02:28.4]} 9... Nxd4 {[%clk 0:02:40]}
10. Nxd4 {[%clk 0:02:27.4]} 10... Qxd4 {[%clk 0:02:40.9]} 11. Qxc7 {[%clk
0:02:27.5]} 11... Bd6 {[%clk 0:02:36.9]} 12. Qc2 {[%clk 0:02:21.9]} 12... Qc5
{[%clk 0:02:34.4]} 13. Qxc5 {[%clk 0:02:10.9]} 13... Bxc5 {[%clk 0:02:35.3]} 14.
Nc3 {[%clk 0:02:11.3]} 14... e5 {[%clk 0:02:20.1]} 15. Bg5 {[%clk 0:02:07]}
15... Nd7 {[%clk 0:02:16.9]} 16. Nd5 {[%clk 0:01:50.6]} 16... f6 {[%clk
0:02:11.8]} 17. Be3 {[%clk 0:01:50.5]} 17... Bxe3 {[%clk 0:02:10.9]} 18. Nxe3
{[%clk 0:01:51.4]} 18... Nc5 {[%clk 0:01:55.2]} 19. Rac1 {[%clk 0:01:42.6]}
19... Ne6 {[%clk 0:01:51.6]} 20. Bd5 {[%clk 0:01:42.6]} 20... Re8 {[%clk
0:01:48.1]} 21. Nf5 {[%clk 0:01:33.1]} 21... Kf8 {[%clk 0:01:04.1]} 22. Rfd1
{[%clk 0:01:32.2]} 22... Nd4 {[%clk 0:00:49.6]} 23. Nxd4 {[%clk 0:01:24.3]}
23... exd4 {[%clk 0:00:50.5]} 24. Rc7 {[%clk 0:01:11.5]} 24... Re7 {[%clk
0:00:31]} 25. Rxe7 {[%clk 0:01:09.9]} 25... Kxe7 {[%clk 0:00:30.7]} 26. Rxd4
{[%clk 0:01:10.6]} 26... Rb8 {[%clk 0:00:26.6]} 27. f4 {[%clk 0:00:57.8]} 27...
Bd7 {[%clk 0:00:24.5]} 28. Kf2 {[%clk 0:00:48.8]} 28... b6 {[%clk 0:00:24.7]}
29. e4 {[%clk 0:00:30.8]} 29... Rc8 {[%clk 0:00:23.6]} 30. Rc4 {[%clk 0:00:31]}
30... Rxc4 {[%clk 0:00:17.5]} 31. Bxc4 {[%clk 0:00:31.9]} 31... Kd6 {[%clk
0:00:17.9]} 32. b4 {[%clk 0:00:32.1]} 32... h6 {[%clk 0:00:14.6]} 33. Ke3 {[%clk
0:00:31.5]} 33... Bc6 {[%clk 0:00:13.9]} 34. Kd4 {[%clk 0:00:30.1]} 34... Bb7
{[%clk 0:00:10.7]} 35. a3 {[%clk 0:00:26.8]} 35... Bc6 {[%clk 0:00:10]} 36. Be2
{[%clk 0:00:16.5]} 36... Bb7 {[%clk 0:00:06.6]} 37. Bf3 {[%clk 0:00:16.7]} 37...
Ke6 {[%clk 0:00:01.5]} 38. Bg4+ {[%clk 0:00:13.6]} 38... Ke7 {[%clk 0:00:01.9]}
39. Bf5 {[%clk 0:00:14.1]} 39... Kd6 {[%clk 0:00:02]} 40. e5+ {[%clk 0:00:13.8]}
40... fxe5+ {[%clk 0:00:02.9]} 41. fxe5+ {[%clk 0:00:14.7]} 41... Ke7 {[%clk
0:00:03.7]} 42. Be4 {[%clk 0:00:14.8]} 42... Bc8 {[%clk 0:00:04.1]} 43. Bd5
{[%clk 0:00:14.9]} 43... Bf5 {[%clk 0:00:04.2]} 44. Kc4 {[%clk 0:00:14.9]} 44...
Bd7 {[%clk 0:00:04.6]} 45. h4 {[%clk 0:00:13]} 45... Ba4 {[%clk 0:00:04.4]} 46.
Be4 {[%clk 0:00:12.5]} 46... Bd7 {[%clk 0:00:04.4]} 47. Kd5 {[%clk 0:00:12.6]}
47... Be8 {[%clk 0:00:03.6]} 48. Bf5 {[%clk 0:00:10.4]} 48... Bb5 {[%clk
0:00:03.2]} 49. Bc2 {[%clk 0:00:08.6]} 49... Bd7 {[%clk 0:00:02.4]} 50. Bd3
{[%clk 0:00:07.6]} 50... Be8 {[%clk 0:00:02.7]} 51. b5 {[%clk 0:00:07.7]} 51...
Bd7 {[%clk 0:00:03.1]} 52. a4 {[%clk 0:00:07.7]} 52... Be8 {[%clk 0:00:03.5]}
53. Bf5 {[%clk 0:00:08.2]} 53... Kd8 {[%clk 0:00:02.4]} 54. Kd6 {[%clk
0:00:08.1]} 54... Bh5 {[%clk 0:00:02.7]} 55. e6 {[%clk 0:00:07.8]} 1-0